fUSD/lending_fUSD_20260502
["ID","MTS","AMOUNT","RATE_DAILY","PERIOD"]
[421447709,1777662644000,-427.0,0.00022,2]
[421447713,1777662644000,-222.0,0.00023,2]
[421447716,1777662644000,-304.0,0.00023,2]
[421447718,1777662644000,-427.0,0.00023,2]
[421447712,1777662644000,-232.0,0.00023,2]
[421447723,1777662644000,-222.0,0.00024,2]
[421447719,1777662644000,-1664.0,0.00023166,2]
[421447720,1777662644000,-166.66,0.00023267,2]
[421447721,1777662644000,-1745.0,0.00024,2]
[421447722,1777662644000,-232.0,0.00024,2]
[421447714,1777662644000,-271.0,0.00023,2]
[421447725,1777662644000,-439.0,0.00024,2]
[421447727,1777662644000,-427.0,0.00024,2]
[421447726,1777662644000,-304.0,0.00024,2]
[421447724,1777662644000,-271.0,0.00024,2]
[421447732,1777662644000,-1000.0,0.00024553,2]
[421447703,1777662644000,-1745.0,0.00022,2]
[421447717,1777662644000,-500.0,0.00023,2]
[421447705,1777662644000,-222.0,0.00022,2]
[421447695,1777662644000,-439.0,0.00021,2]
[421447701,1777662644000,-1000.0,0.00021918,2]
[421447729,1777662644000,-500.0,0.00024005,2]
[421447679,1777662644000,-1745.0,0.0002,2]
[421447680,1777662644000,-232.0,0.0002,2]
[421447682,1777662644000,-271.0,0.0002,2]
[421447681,1777662644000,-222.0,0.0002,2]
[421447683,1777662644000,-439.0,0.0002,2]
[421447688,1777662644000,-1664.0,0.00020166,2]
[421447684,1777662644000,-304.0,0.0002,2]
[421447685,1777662644000,-200.0,0.0002,2]
[421447686,1777662644000,-427.0,0.0002,2]
[421447694,1777662644000,-271.0,0.00021,2]
[421447687,1777662644000,-416.0,0.00020166,2]
[421447692,1777662644000,-232.0,0.00021,2]
[421447691,1777662644000,-1745.0,0.00021,2]
[421447693,1777662644000,-222.0,0.00021,2]
[421447689,1777662644000,-446.08136536,0.00020476,2]
[421447690,1777662644000,-1700.0,0.000209,7]
[421447697,1777662644000,-450.0,0.00021,2]
[421447696,1777662644000,-304.0,0.00021,2]
[421447700,1777662644000,-5000.0,0.00021918,2]
[421447699,1777662644000,-5452.57,0.00021179,2]
[421447698,1777662644000,-427.0,0.00021,2]
[421447704,1777662644000,-232.0,0.00022,2]
[421447706,1777662644000,-271.0,0.00022,2]
[421447728,1777662644000,-500.0,0.00024005,2]
[421447750,1777662644000,-408.0,0.00024658,2]
[421447733,1777662644000,-408.0,0.00024658,2]
[421447758,1777662644000,-408.0,0.00024658,2]
[421447760,1777662644000,-408.0,0.00024658,2]
[421447765,1777662644000,-408.0,0.00024658,2]
[421447761,1777662644000,-408.0,0.00024658,2]
[421447759,1777662644000,-408.0,0.00024658,2]
[421447764,1777662644000,-408.0,0.00024658,2]
[421447770,1777662644000,-408.0,0.00024658,2]
[421447767,1777662644000,-408.0,0.00024658,2]
[421447771,1777662644000,-408.0,0.00024658,2]
[421447769,1777662644000,-408.0,0.00024658,2]
[421447768,1777662644000,-408.0,0.00024658,2]
[421447772,1777662644000,-408.0,0.00024658,2]
[421447774,1777662644000,-408.0,0.00024658,2]
[421447776,1777662644000,-408.0,0.00024658,2]
[421447775,1777662644000,-408.0,0.00024658,2]
[421447777,1777662644000,-408.0,0.00024658,2]
[421447781,1777662644000,-408.0,0.00024658,2]
[421447782,1777662644000,-408.0,0.00024658,2]
[421447780,1777662644000,-408.0,0.00024658,2]
[421447778,1777662644000,-408.0,0.00024658,2]
[421447779,1777662644000,-408.0,0.00024658,2]
[421447783,1777662644000,-408.0,0.00024658,2]
[421447730,1777662644000,-166.66,0.0002401,2]
[421447763,1777662644000,-408.0,0.00024658,2]
[421447762,1777662644000,-408.0,0.00024658,2]
[421447773,1777662644000,-408.0,0.00024658,2]
[421447766,1777662644000,-408.0,0.00024658,2]
[421447756,1777662644000,-408.0,0.00024658,2]
[421447731,1777662644000,-1000.0,0.00024553,2]
[421447734,1777662644000,-408.0,0.00024658,2]
[421447736,1777662644000,-408.0,0.00024658,2]
[421447740,1777662644000,-408.0,0.00024658,2]
[421447735,1777662644000,-408.0,0.00024658,2]
[421447738,1777662644000,-408.0,0.00024658,2]
[421447744,1777662644000,-408.0,0.00024658,2]
[421447742,1777662644000,-408.0,0.00024658,2]
[421447743,1777662644000,-408.0,0.00024658,2]
[421447741,1777662644000,-408.0,0.00024658,2]
[421447745,1777662644000,-408.0,0.00024658,2]
[421447737,1777662644000,-408.0,0.00024658,2]
[421447747,1777662644000,-408.0,0.00024658,2]
[421447757,1777662644000,-408.0,0.00024658,2]
[421447739,1777662644000,-408.0,0.00024658,2]
[421447753,1777662644000,-408.0,0.00024658,2]
[421447752,1777662644000,-408.0,0.00024658,2]
[421447755,1777662644000,-408.0,0.00024658,2]
[421447784,1777662644000,-408.0,0.00024658,2]
[421447754,1777662644000,-408.0,0.00024658,2]
[421447751,1777662644000,-408.0,0.00024658,2]
[421447749,1777662644000,-408.0,0.00024658,2]
[421447748,1777662644000,-408.0,0.00024658,2]
[421447746,1777662644000,-408.0,0.00024658,2]
[421447805,1777662645000,-408.0,0.00024658,2]
[421447803,1777662645000,-408.0,0.00024658,2]
[421447814,1777662645000,-408.0,0.00024658,2]
[421447804,1777662645000,-408.0,0.00024658,2]
[421447806,1777662645000,-408.0,0.00024658,2]
[421447815,1777662645000,-408.0,0.00024658,2]
[421447807,1777662645000,-408.0,0.00024658,2]
[421447809,1777662645000,-408.0,0.00024658,2]
[421447808,1777662645000,-408.0,0.00024658,2]
[421447811,1777662645000,-408.0,0.00024658,2]
[421447812,1777662645000,-408.0,0.00024658,2]
[421447813,1777662645000,-408.0,0.00024658,2]
[421447800,1777662645000,-408.0,0.00024658,2]
[421447816,1777662645000,-408.0,0.00024658,2]
[421447810,1777662645000,-408.0,0.00024658,2]
[421447799,1777662645000,-408.0,0.00024658,2]
[421447788,1777662645000,-408.0,0.00024658,2]
[421447794,1777662645000,-408.0,0.00024658,2]
[421447818,1777662645000,-408.0,0.00024658,2]
[421447789,1777662645000,-408.0,0.00024658,2]
[421447785,1777662645000,-408.0,0.00024658,2]
[421447787,1777662645000,-408.0,0.00024658,2]
[421447786,1777662645000,-408.0,0.00024658,2]
[421447790,1777662645000,-408.0,0.00024658,2]
[421447798,1777662645000,-408.0,0.00024658,2]
[421447791,1777662645000,-408.0,0.00024658,2]
[421447795,1777662645000,-408.0,0.00024658,2]
[421447801,1777662645000,-408.0,0.00024658,2]
[421447802,1777662645000,-408.0,0.00024658,2]
[421447792,1777662645000,-408.0,0.00024658,2]
[421447797,1777662645000,-408.0,0.00024658,2]
[421447796,1777662645000,-408.0,0.00024658,2]
[421447793,1777662645000,-408.0,0.00024658,2]
[421447826,1777662645000,-233.0,0.00025,2]
[421447834,1777662645000,-1500.0,0.00025101,2]
[421447821,1777662645000,-408.0,0.00024658,2]
[421447845,1777662645000,-166.66,0.00026241,2]
[421447843,1777662645000,-2500.0,0.00026197,2]
[421447846,1777662645000,-2356.81249027,0.00026745,2]
[421447847,1777662645000,-3000.0,0.00026745,2]
[421447844,1777662645000,-2500.0,0.00026197,2]
[421447848,1777662645000,-3985.653654,0.00027,2]
[421447839,1777662645000,-2000.0,0.00025649,2]
[421447852,1777662645000,-1500.0,0.00027397,2]
[421447853,1777662645000,-232.9,0.00027397,20]
[421447850,1777662645000,-711.0,0.00027137,2]
[421447851,1777662645000,-2957.65162799,0.00027293,2]
[421447849,1777662645000,-600.0,0.00027,2]
[421447855,1777662645000,-3113.08388909,0.00027397,10]
[421447856,1777662645000,-1027.23724345,0.00027397,10]
[421447820,1777662645000,-408.0,0.00024658,2]
[421447837,1777662645000,-166.66,0.00025497,2]
[421447854,1777662645000,-300.0,0.00027397,2]
[421447841,1777662645000,-1664.0,0.00026166,2]
[421447817,1777662645000,-408.0,0.00024658,2]
[421447822,1777662645000,-408.0,0.00024658,2]
[421447825,1777662645000,-1761.0,0.00025,2]
[421447823,1777662645000,-1000.0,0.00024658,2]
[421447827,1777662645000,-241.0,0.00025,2]
[421447824,1777662645000,-166.66,0.00024754,2]
[421447829,1777662645000,-451.0,0.00025,2]
[421447830,1777662645000,-321.0,0.00025,2]
[421447832,1777662645000,-427.0,0.00025,2]
[421447831,1777662645000,-550.0,0.00025,2]
[421447835,1777662645000,-3023.37063834,0.00025339,60]
[421447819,1777662645000,-408.0,0.00024658,2]
[421447833,1777662645000,-1500.0,0.00025101,2]
[421447828,1777662645000,-287.0,0.00025,2]
[421447840,1777662645000,-2000.0,0.00025649,2]
[421447864,1777662646000,-205.11746668,0.00021918,2]
[421447865,1777662646000,-419.82946941,0.00024658,10]
[421447868,1777662646000,-304.82946941,0.00024658,10]
[421447866,1777662646000,-110.17053059,0.00024658,10]
[421447867,1777662646000,-585.0,0.00024658,10]
[421448252,1777662715000,1600.0,0.00029215,120]
[421448251,1777662715000,1600.0,0.00025969,120]
[421448253,1777663539000,-328.04342732,8.795e-05,2]
[421448254,1777663552000,174.96,4.503e-05,2]
[421448255,1777663643000,-386.474881,8.795e-05,2]
[421448267,1777663748000,-1200.0,8.935e-05,2]
[421448265,1777663748000,-261.46,8.895e-05,2]
[421448263,1777663748000,-355.31167771,8.892e-05,2]
[421448262,1777663748000,-2500.0,8.865e-05,2]
[421448261,1777663748000,-2500.0,8.865e-05,2]
[421448258,1777663748000,-300.0,8.845e-05,2]
[421448259,1777663748000,-255.55202424,8.845e-05,2]
[421448256,1777663748000,-37.39799168,8.795e-05,2]
[421448257,1777663748000,-2500.0,8.82e-05,2]
[421448268,1777663748000,-195.0,8.976e-05,2]
[421448260,1777663748000,-2500.0,8.865e-05,2]
[421448266,1777663748000,-205.9,8.9e-05,2]
[421448264,1777663748000,-3162.749,8.895e-05,2]
[421448271,1777663748000,-1000.0,9.065e-05,2]
[421448269,1777663748000,-2500.0,8.977e-05,2]
[421448280,1777663748000,-6134.4004,9.077e-05,2]
[421448277,1777663748000,-208.48,9.065e-05,2]
[421448278,1777663748000,-500.0,9.065e-05,2]
[421448276,1777663748000,-640.0,9.065e-05,2]
[421448279,1777663748000,-300.0,9.075e-05,2]
[421448274,1777663748000,-392.93,9.065e-05,2]
[421448281,1777663748000,-265036.03530637,9.077e-05,2]
[421448273,1777663748000,-500.0,9.065e-05,2]
[421448272,1777663748000,-9216.71,9.065e-05,2]
[421448270,1777663748000,-150.0,9.064e-05,2]
[421448275,1777663748000,-1852.42,9.065e-05,2]
[421448282,1777663773000,-39853.76094,9.077e-05,2]
[421448318,1777663832000,-250.0,9.675e-05,2]
[421448312,1777663832000,-500.0,9.563e-05,2]
[421448313,1777663832000,-107593.09698738,9.584e-05,2]
[421448314,1777663832000,-2250.14715351,9.675e-05,2]
[421448322,1777663832000,-205.0,9.8e-05,2]
[421448315,1777663832000,-193.0,9.675e-05,2]
[421448316,1777663832000,-300.0,9.675e-05,2]
[421448317,1777663832000,-300.0,9.675e-05,2]
[421448326,1777663832000,-151.0,0.0001,2]
[421448321,1777663832000,-250.0,9.675e-05,2]
[421448320,1777663832000,-300.0,9.675e-05,2]
[421448323,1777663832000,-255.0,9.983e-05,2]
[421448325,1777663832000,-500.0,0.0001,2]
[421448333,1777663832000,-500.0,0.0001,2]
[421448306,1777663832000,-2500.0,9.143e-05,2]
[421448324,1777663832000,-2500.0,9.984e-05,2]
[421448327,1777663832000,-500.0,0.0001,2]
[421448329,1777663832000,-151.0,0.0001,2]
[421448319,1777663832000,-2500.0,9.675e-05,2]
[421448307,1777663832000,-9430.3,9.21e-05,2]
[421448304,1777663832000,-150.0,9.076e-05,2]
[421448310,1777663832000,-2500.0,9.354e-05,2]
[421448285,1777663832000,-221125.108,8.965e-05,2]
[421448288,1777663832000,-500.0,9.076e-05,2]
[421448289,1777663832000,-500.0,9.076e-05,2]
[421448286,1777663832000,-500.0,9.076e-05,2]
[421448287,1777663832000,-500.0,9.076e-05,2]
[421448291,1777663832000,-509.76165973,9.076e-05,2]
[421448290,1777663832000,-500.0,9.076e-05,2]
[421448292,1777663832000,-500.0,9.076e-05,2]
[421448294,1777663832000,-500.0,9.076e-05,2]
[421448296,1777663832000,-500.0,9.076e-05,2]
[421448297,1777663832000,-168.11683278,9.076e-05,2]
[421448298,1777663832000,-292.15233989,9.076e-05,2]
[421448301,1777663832000,-300.0,9.076e-05,2]
[421448300,1777663832000,-500.0,9.076e-05,2]
[421448299,1777663832000,-500.0,9.076e-05,2]
[421448332,1777663832000,-151.0,0.0001,2]
[421448303,1777663832000,-374.0,9.076e-05,2]
[421448305,1777663832000,-196988.10195363,9.077e-05,2]
[421448309,1777663832000,-2500.0,9.354e-05,2]
[421448308,1777663832000,-166.77,9.337e-05,2]
[421448328,1777663832000,-151.0,0.0001,2]
[421448311,1777663832000,-500.0,9.563e-05,2]
[421448331,1777663832000,-500.0,0.0001,2]
[421448358,1777663832000,-160.0,0.00010916,2]
[421448359,1777663832000,-160.0,0.00010916,2]
[421448361,1777663832000,-150.99,0.00010916,2]
[421448360,1777663832000,-9999.99,0.00010916,2]
[421448363,1777663832000,-9999.99,0.00010916,2]
[421448362,1777663832000,-299.99,0.00010916,2]
[421448364,1777663832000,-2190.85,0.00010916,2]
[421448367,1777663832000,-150.0,0.00010982,2]
[421448365,1777663832000,-9999.99,0.00010916,2]
[421448369,1777663832000,-421.23,0.0001103,2]
[421448368,1777663832000,-167.35,0.0001099,2]
[421448366,1777663832000,-6503.52805237,0.00010949,2]
[421448370,1777663832000,-640.0,0.00011331,2]
[421448372,1777663832000,-1400.0,0.000117,4]
[421448371,1777663832000,-700.0,0.000116,4]
[421448373,1777663832000,-2200.0,0.000118,4]
[421448374,1777663832000,-2900.0,0.000119,4]
[421448376,1777663832000,-298283.36293063,0.00012,2]
[421448375,1777663832000,-250.0,0.000119,2]
[421448357,1777663832000,-162.38278084,0.00010916,2]
[421448355,1777663832000,-34661.68388683,0.00010682,2]
[421448352,1777663832000,-421.23,0.00010278,2]
[421448344,1777663832000,-151.0,0.0001,2]
[421448335,1777663832000,-151.0,0.0001,2]
[421448334,1777663832000,-151.0,0.0001,2]
[421448337,1777663832000,-151.0,0.0001,2]
[421448336,1777663832000,-500.0,0.0001,2]
[421448341,1777663832000,-151.0,0.0001,2]
[421448338,1777663832000,-151.0,0.0001,2]
[421448343,1777663832000,-151.0,0.0001,2]
[421448340,1777663832000,-151.0,0.0001,2]
[421448345,1777663832000,-380.39364218,0.0001,2]
[421448354,1777663832000,-421.23,0.00010529,2]
[421448330,1777663832000,-151.0,0.0001,2]
[421448339,1777663832000,-151.0,0.0001,2]
[421448346,1777663832000,-839.01437768,0.0001,2]
[421448348,1777663832000,-421.23,0.00010027,2]
[421448347,1777663832000,-500.0,0.0001,2]
[421448349,1777663832000,-200.0,0.00010061,2]
[421448350,1777663832000,-640.0,0.00010198,2]
[421448351,1777663832000,-500.0,0.00010274,2]
[421448353,1777663832000,-13573.99,0.00010475,2]
[421448356,1777663832000,-421.23,0.00010779,2]
[421448342,1777663832000,-151.0,0.0001,2]
[421448379,1777663838000,-500.0,9.076e-05,2]
[421448378,1777663838000,-400.21706836,9.076e-05,2]
[421448380,1777663838000,-37580.51395014,0.00012,2]
[421448382,1777663838000,-48993.48432967,0.00012,2]
[421448383,1777663838000,-829.67010334,0.00012,2]
[421448384,1777663838000,-380.52932165,0.00012,2]
[421448381,1777663838000,-36590.52591381,0.00012,2]
[421448397,1777663840000,-10824.37545652,0.00012,2]
[421448398,1777663840000,-300.0,0.00012,2]
[421448419,1777663846000,-1510.71063688,0.00012,2]
[421448418,1777663846000,-392.27698788,0.00012,2]
[421448415,1777663846000,-2500.0,8.977e-05,2]
[421448417,1777663846000,-7089.96042658,0.00012,2]
[421448416,1777663846000,-4160.44156327,0.00012,2]
[421448427,1777663849000,756.0,0.000166,120]
[421448426,1777663849000,244.0,0.0002,120]
[421448430,1777663919000,599.46905473,0.00030136,120]
[421448436,1777664469000,164.07,7.921e-05,2]
[421448435,1777664469000,164.07,5.281e-05,2]
[421448437,1777664690000,500.0,0.0002963,120]
[421448439,1777664825000,600.0,8.9e-05,3]
[421448440,1777664827000,1300.0,9e-05,3]
[421448443,1777664852000,1421.15,0.00030129,120]
[421448442,1777664852000,1421.15,0.00028738,120]
[421448447,1777664956000,-24.428086,8.797e-05,2]
[421448446,1777664956000,-3563.656,8.797e-05,2]
[421448445,1777664956000,-2500.0,8.797e-05,2]
[421448455,1777665032000,-2500.0,8.861e-05,2]
[421448454,1777665032000,-300.436914,8.797e-05,2]
[421448456,1777665032000,-758.52821018,8.876e-05,2]
[421448459,1777665032000,-157734.54904767,8.877e-05,2]
[421448460,1777665032000,-1254.41808677,8.877e-05,2]
[421448458,1777665032000,-441.47178982,8.876e-05,2]
[421448461,1777665032000,-817.26055047,8.877e-05,2]
[421448457,1777665032000,-220.11618007,8.876e-05,2]
[421448494,1777665038000,-500.0,8.876e-05,2]
[421448493,1777665038000,-500.0,8.876e-05,2]
[421448476,1777665038000,-500.0,8.876e-05,2]
[421448478,1777665038000,-500.0,8.876e-05,2]
[421448477,1777665038000,-282.41652562,8.876e-05,2]
[421448479,1777665038000,-500.0,8.876e-05,2]
[421448480,1777665038000,-500.0,8.876e-05,2]
[421448475,1777665038000,-500.0,8.876e-05,2]
[421448482,1777665038000,-500.0,8.876e-05,2]
[421448472,1777665038000,-500.0,8.876e-05,2]
[421448481,1777665038000,-500.0,8.876e-05,2]
[421448473,1777665038000,-500.0,8.876e-05,2]
[421448471,1777665038000,-371.62756367,8.876e-05,2]
[421448469,1777665038000,-507.79456249,8.876e-05,2]
[421448470,1777665038000,-500.0,8.876e-05,2]
[421448495,1777665038000,-500.0,8.876e-05,2]
[421448483,1777665038000,-522.95471335,8.876e-05,2]
[421448474,1777665038000,-500.0,8.876e-05,2]
[421448488,1777665038000,-500.0,8.876e-05,2]
[421448512,1777665038000,-355.48960517,8.877e-05,2]
[421448509,1777665038000,-142217.84386954,8.877e-05,2]
[421448502,1777665038000,-380.52932165,8.877e-05,2]
[421448500,1777665038000,-48993.48432967,8.877e-05,2]
[421448498,1777665038000,-500.0,8.876e-05,2]
[421448497,1777665038000,-500.0,8.876e-05,2]
[421448501,1777665038000,-829.67010334,8.877e-05,2]
[421448499,1777665038000,-21905.73254868,8.877e-05,2]
[421448484,1777665038000,-500.0,8.876e-05,2]
[421448491,1777665038000,-500.0,8.876e-05,2]
[421448487,1777665038000,-500.0,8.876e-05,2]
[421448489,1777665038000,-500.0,8.876e-05,2]
[421448492,1777665038000,-500.0,8.876e-05,2]
[421448496,1777665038000,-500.0,8.876e-05,2]
[421448486,1777665038000,-500.0,8.876e-05,2]
[421448490,1777665038000,-500.0,8.876e-05,2]
[421448485,1777665038000,-500.0,8.876e-05,2]
[421448573,1777665040000,-697.5,8.877e-05,2]
[421448571,1777665040000,-480.53080747,8.877e-05,2]
[421448572,1777665040000,-535.94538832,8.877e-05,2]
[421448570,1777665040000,-381568.26407573,8.877e-05,2]
[421448605,1777665046000,-1136.03821777,8.877e-05,2]
[421448606,1777665046000,-29775.78724932,8.877e-05,2]
[421448615,1777665452000,171.57,6.165e-05,2]
[421448614,1777665452000,171.57,4.11e-05,2]
[421448616,1777665453000,171.57,8.22e-05,2]
[421448617,1777665498000,777.58,8.223e-05,2]
[421448618,1777665618000,1000.0,8.092e-05,2]
[421448619,1777665695000,256.0,8.168e-05,2]
[421448620,1777665715000,186.97,8.219e-05,2]
[421448621,1777665719000,1110.485,0.00030137,120]
[421448622,1777665721000,500.0,8.147e-05,2]
[421448623,1777665729000,2000.0,8.244e-05,2]
[421448624,1777665758000,1302.72,0.00027999,120]
[421448627,1777665758000,1302.72,0.00029999,120]
[421448626,1777665758000,1302.72,0.00029999,120]
[421448625,1777665758000,1302.72,0.00029999,120]
[421448628,1777665759000,1302.72,0.00029999,120]
[421448629,1777665759000,1302.86852869,0.00029999,120]
[421448630,1777665812000,837.78,8.219e-05,2]
[421448631,1777665820000,200.0,8.005e-05,2]
[421448634,1777665937000,-2480.61558861,8.646e-05,2]
[421448633,1777665937000,-300.0,8.622e-05,2]
[421448632,1777665937000,-204.5796,8.599e-05,2]
[421448635,1777665973000,166.67,8.391e-05,2]
[421448636,1777666043000,500.0,8.8e-05,3]
[421448637,1777666045000,1100.0,8.9e-05,3]
[421448638,1777666047000,1700.0,9e-05,3]
[421448639,1777666051000,188.50996035,8.319e-05,2]
[421448640,1777666051000,157.47003965,8.319e-05,2]
[421448657,1777666170000,-500.0,8.676e-05,2]
[421448656,1777666170000,-500.0,8.676e-05,2]
[421448654,1777666170000,-500.0,8.676e-05,2]
[421448655,1777666170000,-500.0,8.676e-05,2]
[421448652,1777666170000,-500.0,8.676e-05,2]
[421448653,1777666170000,-500.0,8.676e-05,2]
[421448651,1777666170000,-500.0,8.676e-05,2]
[421448645,1777666170000,-500.0,8.676e-05,2]
[421448648,1777666170000,-500.0,8.676e-05,2]
[421448647,1777666170000,-282.41652562,8.676e-05,2]
[421448646,1777666170000,-500.0,8.676e-05,2]
[421448659,1777666170000,-500.0,8.676e-05,2]
[421448642,1777666170000,-300.0,8.675e-05,2]
[421448643,1777666170000,-1000.0,8.676e-05,2]
[421448641,1777666170000,-2500.0,8.661e-05,2]
[421448650,1777666170000,-194.54158529,8.676e-05,2]
[421448658,1777666170000,-500.0,8.676e-05,2]
[421448644,1777666170000,-507.79456249,8.676e-05,2]
[421448662,1777666170000,-500.0,8.676e-05,2]
[421448660,1777666170000,-500.0,8.676e-05,2]
[421448678,1777666170000,-500.0,8.676e-05,2]
[421448677,1777666170000,-500.0,8.676e-05,2]
[421448676,1777666170000,-500.0,8.676e-05,2]
[421448675,1777666170000,-500.0,8.676e-05,2]
[421448674,1777666170000,-500.0,8.676e-05,2]
[421448673,1777666170000,-500.0,8.676e-05,2]
[421448672,1777666170000,-500.0,8.676e-05,2]
[421448671,1777666170000,-500.0,8.676e-05,2]
[421448649,1777666170000,-500.0,8.676e-05,2]
[421448669,1777666170000,-500.0,8.676e-05,2]
[421448670,1777666170000,-500.0,8.676e-05,2]
[421448668,1777666170000,-500.0,8.676e-05,2]
[421448667,1777666170000,-500.0,8.676e-05,2]
[421448665,1777666170000,-500.0,8.676e-05,2]
[421448666,1777666170000,-500.0,8.676e-05,2]
[421448664,1777666170000,-500.0,8.676e-05,2]
[421448663,1777666170000,-500.0,8.676e-05,2]
[421448661,1777666170000,-500.0,8.676e-05,2]
[421448692,1777666171000,-500.0,8.676e-05,2]
[421448695,1777666171000,-500.0,8.676e-05,2]
[421448693,1777666171000,-500.0,8.676e-05,2]
[421448691,1777666171000,-500.0,8.676e-05,2]
[421448690,1777666171000,-500.0,8.676e-05,2]
[421448689,1777666171000,-500.0,8.676e-05,2]
[421448685,1777666171000,-500.0,8.676e-05,2]
[421448686,1777666171000,-500.0,8.676e-05,2]
[421448684,1777666171000,-500.0,8.676e-05,2]
[421448694,1777666171000,-500.0,8.676e-05,2]
[421448681,1777666171000,-500.0,8.676e-05,2]
[421448682,1777666171000,-500.0,8.676e-05,2]
[421448680,1777666171000,-481.25241311,8.676e-05,2]
[421448679,1777666171000,-500.0,8.676e-05,2]
[421448687,1777666171000,-500.0,8.676e-05,2]
[421448696,1777666171000,-500.0,8.676e-05,2]
[421448683,1777666171000,-500.0,8.676e-05,2]
[421448697,1777666171000,-374.52938069,8.676e-05,2]
[421448698,1777666171000,-500.0,8.676e-05,2]
[421448714,1777666171000,-266912.4791328,8.677e-05,2]
[421448712,1777666171000,-500.0,8.676e-05,2]
[421448713,1777666171000,-150.0,8.676e-05,2]
[421448710,1777666171000,-500.0,8.676e-05,2]
[421448711,1777666171000,-500.0,8.676e-05,2]
[421448709,1777666171000,-500.0,8.676e-05,2]
[421448708,1777666171000,-500.0,8.676e-05,2]
[421448688,1777666171000,-500.0,8.676e-05,2]
[421448707,1777666171000,-500.0,8.676e-05,2]
[421448705,1777666171000,-500.0,8.676e-05,2]
[421448704,1777666171000,-200.0,8.676e-05,2]
[421448702,1777666171000,-500.0,8.676e-05,2]
[421448703,1777666171000,-500.0,8.676e-05,2]
[421448701,1777666171000,-500.0,8.676e-05,2]
[421448700,1777666171000,-500.0,8.676e-05,2]
[421448706,1777666171000,-500.0,8.676e-05,2]
[421448699,1777666171000,-500.0,8.676e-05,2]
[421448729,1777666232000,-8173.23656239,8.677e-05,2]
[421448735,1777666232000,-488.39471186,8.677e-05,2]
[421448737,1777666232000,-1300.57826522,8.677e-05,2]
[421448738,1777666232000,-891.48612143,8.677e-05,2]
[421448742,1777666232000,-4639.39429941,8.677e-05,2]
[421448739,1777666232000,-1833.51726259,8.677e-05,2]
[421448743,1777666232000,-1855.39247416,8.677e-05,2]
[421448740,1777666232000,-2012.4399164,8.677e-05,2]
[421448736,1777666232000,-1369.51623453,8.677e-05,2]
[421448745,1777666232000,-3318.50379797,8.677e-05,2]
[421448746,1777666232000,-502.5918283,8.677e-05,2]
[421448749,1777666232000,-3558.96512418,8.677e-05,2]
[421448751,1777666232000,-454.02947525,8.677e-05,2]
[421448753,1777666232000,-749.6440699,8.677e-05,2]
[421448741,1777666232000,-2827.68173886,8.677e-05,2]
[421448732,1777666232000,-1030.13421599,8.677e-05,2]
[421448730,1777666232000,-7599.11574409,8.677e-05,2]
[421448734,1777666232000,-693.69606344,8.677e-05,2]
[421448765,1777666232000,-2500.0,8.677e-05,2]
[421448716,1777666232000,-300.0,8.675e-05,2]
[421448717,1777666232000,-900.0,8.675e-05,2]
[421448718,1777666232000,-1200.0,8.675e-05,2]
[421448719,1777666232000,-300.0,8.675e-05,2]
[421448720,1777666232000,-300.0,8.675e-05,2]
[421448733,1777666232000,-419.02914301,8.677e-05,2]
[421448721,1777666232000,-500.0,8.676e-05,2]
[421448724,1777666232000,-500.0,8.676e-05,2]